[Event "Israeli Championship 2022"]
[Site "Yosiah Arad"]
[Date "2022.12.11"]
[Round "7.7"]
[White "Streltsov, Alexey"]
[Black "Dvoirys, Semen I."]
[Result "0-1"]
[ECO "B92"]
[WhiteElo "2313"]
[BlackElo "2461"]
[Annotator "TA"]
[PlyCount "86"]
[EventDate "2022.12.05"]
[EventType "swiss"]
[EventCountry "ISR"]
[SourceTitle "playchess.com"]
[Source "ChessBase"]
[SourceQuality "1"]
[TimeControl "40/5400+30:1800+30"]

{[%evp 20,86,0,10,17,16,17,14,15,20,16,18,19,26,14,0,0,0,23,12,13,15,10,0,0,0,23,-30,-39,-54,-46,-50,-50,-50,-50,-49,-48,-52,-47,-50,-56,-87,-86,-66,-43,-77,-4,-2,0,0,0,-8,-4,-8,7,5,6,-144,-121,-2066,-2032,-5389,-5014,-29979,-29980,-29982,-29983,-29988,-29989]} 1. e4 {[%emt 0:00:04]} c5 {[%emt 0:00:14]} 2. Nf3 {[%emt 0:00:07]} d6 {[%emt 0:00:22]} 3. d4 {[%emt 0:00:06]} cxd4 {[%emt 0:00:04]} 4. Nxd4 {[%emt 0:00:04]} Nf6 {[%emt 0:00:04]} 5. Nc3 {[%emt 0:00:10]} a6 {[%emt 0:00:04]} 6. Be3 {[%emt 0:00:11]} e5 {[%emt 0:01:05]} 7. Nb3 {[%emt 0:00:06]} Be6 {[%emt 0:00:08]} 8. Be2 {[%emt 0:00:09]} Nbd7 {[%emt 0:03:23]} 9. O-O {[%emt 0:00:12]} Be7 {[%emt 0:00:47]} 10. Bf3 {[%emt 0:00:17]} O-O {[%emt 0:09:24]} 11. a4 {[%emt 0:00:05]} Qc7 $1 {[%emt 0:01:03][%mdl 4] now scores much better than the old 11...Rc8. B92: Sicilian Najdorf: 6 Be2.} 12. a5 {[%emt 0:00:11]} Rfc8 {[%emt 0:04:53]} 13. Re1 {[%emt 0:06:54]} b5 {[%emt 0:09:00] The position is equal.} 14. axb6 {[%emt 0:08:01]} Nxb6 {[%emt 0:00:11]} 15. Na5 {[%emt 0:00:20]} Nc4 {[%emt 0:00:50]} 16. Nxc4 {[%emt 0:00:22]} Qxc4 {[%emt 0:00:09]} 17. Ra4 {[%emt 0:14:49]} Qc6 {[%emt 0:00:31]} 18. Qa1 {[%emt 0:00:08]} Qb7 {[%emt 0:04:29] [#]} 19. b3 $146 {[%emt 0:13:38]} (19. Be2 $5 {[%cal Re2a6]} a5 20. Rd1 $11) ({Predecessor:} 19. h3 h6 20. Rd1 Bd7 21. Ra3 Bc6 22. Rb3 Qd7 23. Rb6 a5 24. Qa3 d5 25. Bc5 Bxc5 26. Qxc5 {½-½ (43) Mladenov,S (2463)-Roeder,M (2392) Germany 2010}) 19... Qc6 {[%emt 0:08:54]} 20. Bd2 {[%emt 0:00:26]} Bd8 {[%emt 0:00:19][%cal Be7d8,Bd8b6,Bb6d4][%mdl 32]} 21. Be2 {[%emt 0:04:58][%cal Re2a6]} a5 $1 {[%emt 0:10:28]} 22. Bc4 {[%emt 0:17:39]} Bb6 {[%emt 0:11:41]} 23. h3 {[%emt 0:00:57]} (23. Be3 $142) 23... Bd4 $11 {[%emt 0:00:37][%cal Re6c4]} (23... Qc5 24. Be3 Qc7 25. Qd1 $11) 24. Qa2 {[%emt 0:04:34]} Qb7 {[%emt 0:05:51]} 25. Nb5 {[%emt 0:19:24]} Bxc4 {[%emt 0:04:28]} 26. Nxd4 {[%emt 0:00:29]} exd4 {[%emt 0:03:10]} (26... Nxe4 {feels hotter.} 27. Nf5 Be6 28. Rexe4 Bxf5 29. Rec4 d5) 27. bxc4 {[%emt 0:00:28]} Nxe4 {[%emt 0:00:10]} 28. Bxa5 {[%emt 0:00:51][%cal Oa5b6]} Nc5 {[%emt 0:03:04]} 29. Ra3 {[%emt 0:00:06]} Ne6 {[%emt 0:00:22]} 30. Ra4 {[%emt 0:07:34]} h6 {[%emt 0:02:06] Black is more active.} 31. Bd2 {[%emt 0:01:52][%cal Ba5d2,Bd2f4,Bf4d6,Bd6e5][%mdl 32] Against Nf4} Nc5 {[%emt 0:04:28]} (31... Rxa4 {simplifies} 32. Qxa4 Qc7 33. Qa3 Qxc4 34. Qxd6 Qa2) 32. Ra5 {[%emt 0:00:26]} Ne4 {[%emt 0:00:32]} (32... Rxa5 $17 33. Qxa5 Qb2) 33. Bf4 $1 {[%emt 0:00:18]} Rxa5 {[%emt 0:10:28]} (33... g5 {simplifies} 34. Bc1 Nc5 35. Rxa8 Rxa8 36. Qb2 Qxb2 37. Bxb2 Ra4) 34. Qxa5 {[%emt 0:00:01]} Rxc4 {[%emt 0:00:11]} 35. Bxd6 {[%emt 0:00:10][%mdl 64]} Qc6 $36 {[%emt 0:01:18][%mdl 2048] White is under pressure.} (35... Rxc2 36. Qf5 Nxd6 37. Qxc2 $16) (35... Nxd6 $5 36. Qd8+ $8 Kh7 37. Qxd6 Qc7 $11) 36. Be5 {[%emt 0:00:31]} Ng5 {[%emt 0:00:28]} 37. Qd8+ {[%emt 0:00:54]} Kh7 {[%emt 0:00:05]} 38. Rd1 {[%emt 0:01:13]} (38. Bxd4 Ne6 39. Rxe6 Qxe6 $17) (38. Qf8 Qg6 39. Kh2 Ne6 $17) (38. h4 $11 Ne4 39. Bxd4 (39. Qf8 f6 $17)) 38... Qg6 {[%emt 0:01:00] Hoping for ...Nf3+.} 39. Kf1 $2 {[%emt 0:00:37][%mdl 8192] White does not recover from this.} (39. Rd3 $17) 39... Qxc2 $19 {[%emt 0:00:26][%cal Rc2d1]} (39... Rxc2 40. Bxd4 Qe4 41. Be3 $15 (41. Kg1 $2 Ne6 $19)) 40. Re1 {[%emt 0:00:35]} d3 {[%emt 0:01:07][%cal Bd4d3,Bd3d2][%mdl 32] ( -> ...d2)} 41. Qf8 {[%emt 0:10:35]} Ne6 {[%emt 0:00:12] Black mates.} (41... f6 $2 {[#]} 42. Bxf6 $1 {[%mdl 512]} Rc7 43. Bxg7 $1 $18 {[%mdl 512]} (43. Bxg5 hxg5 44. Qf5+ g6 $11) (43. Bxg5 hxg5 44. Qf5+ g6 $11)) 42. Qd6 {[%emt 0:00:02]} d2 {[%emt 0:00:22]} 43. Ra1 {[%emt 0:00:01] [#]} Rd4 $3 {[%emt 0:00:27][%mdl 512] Weighted Error Value: White=0.61/Black=0.07 (flawless)} 0-1

[Event "Israeli Championship 2022"]
[Site "Yosiah Arad"]
[Date "2022.12.11"]
[Round "7.8"]
[White "Levitan, Tal"]
[Black "Postny, Evgeny"]
[Result "1/2-1/2"]
[ECO "C48"]
[WhiteElo "2243"]
[BlackElo "2588"]
[Annotator "TA"]
[PlyCount "95"]
[EventDate "2022.12.05"]
[EventType "swiss"]
[EventCountry "ISR"]
[SourceTitle "playchess.com"]
[Source "ChessBase"]
[SourceQuality "1"]
[TimeControl "40/5400+30:1800+30"]

{[%evp 9,95,16,20,6,7,-39,0,0,0,-6,0,0,0,0,0,0,0,0,0,0,21,24,37,0,23,37,39,0,0,0,7,0,12,11,12,2,17,12,18,0,3,19,16,0,0,0,0,0,0,-14,0,0,0,-22,0,0,1,6,0,0,8,0,14,8,13,18,16,0,6,0,0,0,0,0,0,0,65,17,23,0,0,0,0,0,0,0,0,0]} 1. e4 {[%emt 0:00:03]} e5 {[%emt 0:00:21]} 2. Nf3 {[%emt 0:00:08]} Nc6 {[%emt 0:00:07]} 3. Nc3 {[%emt 0:00:26]} Nf6 {[%emt 0:00:08]} 4. Bb5 {[%emt 0:00:02]} Bd6 {[%emt 0:00:13]} 5. d3 {[%emt 0:03:10]} O-O {[%emt 0:00:14]} 6. Bg5 {[%emt 0:03:37] C48: Four Knights: 4 Bb5, replies other than 4...Bb4.} h6 {[%emt 0:01:42] [#]} 7. Bd2 $146 {[%emt 0:10:26]} (7. Bh4 $11) ({Predecessor:} 7. Be3 a6 8. Ba4 b5 9. Bb3 Na5 10. Qd2 Nxb3 11. axb3 Ng4 12. Nxb5 Nxe3 13. fxe3 {0-1 (37) Dushyant,S (2369)-Sadhwani,R (2616) Chess.com INT 2022}) 7... a6 {[%emt 0:04:08]} 8. Bxc6 {[%emt 0:00:34]} dxc6 {[%emt 0:00:42]} 9. Rg1 {[%emt 0:01:00][%cal Bh1g1,Bg1g3,Bg3f3][%mdl 32]} Re8 {[%emt 0:11:51]} 10. g4 {[%emt 0:03:49]} Bxg4 {[%emt 0:07:09]} 11. Bxh6 $1 {[%emt 0:01:14][%mdl 64] [#]} g6 {[%emt 0:00:31]} 12. Bg5 {[%emt 0:03:38] And now Rxg4 would win.} Bh5 {[%emt 0:00:24]} 13. Rg3 {[%emt 0:02:25]} Be7 {[%emt 0:02:44]} 14. Qd2 {[%emt 0:06:06]} Nh7 {[%emt 0:02:05]} 15. Bxe7 {[%emt 0:25:13]} Qxe7 {[%emt 0:00:19]} 16. O-O-O {[%emt 0:07:46]} Bxf3 {[%emt 0:07:04]} (16... Qf6 $5 {[%cal Rh5f3]} 17. Qe3 Nf8 $11) 17. Rxf3 {[%emt 0:00:03]} Qg5 {[%emt 0:00:06] Inhibits Rg1.} 18. Ne2 {[%emt 0:03:54]} Qxd2+ {[%emt 0:11:21]} 19. Kxd2 {[%emt 0:00:16]} Kg7 {[%emt 0:00:06]} 20. Rg3 {[%emt 0:07:55]} Nf6 {[%emt 0:01:49]} 21. f4 {[%emt 0:00:36]} Rad8 {[%emt 0:06:03]} 22. Kc1 {[%emt 0:01:37]} exf4 {[%emt 0:03:28]} 23. Nxf4 {[%emt 0:00:04]} Rh8 {[%emt 0:00:49][%cal Of6h5]} 24. h3 {[%emt 0:04:52]} Rde8 {[%emt 0:05:01]} 25. Rf1 {[%emt 0:04:22]} Nd7 {[%emt 0:00:17]} 26. Ng2 {[%emt 0:01:14]} Re6 {[%emt 0:03:28]} 27. Kd2 {[%emt 0:03:44]} Rf6 {[%emt 0:00:32]} 28. Rxf6 {[%emt 0:00:02]} Nxf6 $11 {[%emt 0:00:15][%mdl 4096] Endgame KRN-KRN} 29. Nf4 {[%emt 0:02:25]} c5 {[%emt 0:03:20]} 30. Ke3 {[%emt 0:00:31]} b6 {[%emt 0:01:53]} 31. c3 {[%emt 0:00:57]} Re8 {[%emt 0:00:44][%cal Oc5c4]} 32. b3 {[%emt 0:00:04]} Re5 {[%emt 0:01:35]} 33. h4 {[%emt 0:00:29]} Kh6 {[%emt 0:00:41]} 34. Rg1 {[%emt 0:02:46]} c6 {[%emt 0:03:53]} 35. Kf3 {[%emt 0:00:36]} Re7 {[%emt 0:03:00]} 36. Re1 {[%emt 0:00:38]} Rd7 {[%emt 0:03:37]} 37. Rd1 {[%emt 0:00:24]} Re7 {[%emt 0:00:40]} 38. Re1 {[%emt 0:00:03]} Nd7 {[%emt 0:00:05]} 39. d4 {[%emt 0:01:27]} cxd4 {[%emt 0:00:07]} 40. cxd4 {[%emt 0:00:02]} c5 {[%emt 0:00:11]} 41. d5 {[%emt 0:07:39]} Ne5+ {[%emt 0:05:02]} 42. Ke3 {[%emt 0:00:37]} Kg7 {[%emt 0:00:17]} (42... Re8 $11) 43. Rg1 {[%emt 0:00:35]} (43. h5 $1 $14) 43... Nd7 $1 {[%emt 0:11:15]} 44. Rg5 {[%emt 0:05:44]} Re8 {[%emt 0:04:05] The position is equal.} 45. d6 {[%emt 0:02:52]} Kf6 {[%emt 0:05:26]} 46. Nd5+ {[%emt 0:00:44]} Kg7 {[%emt 0:00:07]} 47. Nf4 {[%emt 0:00:02]} Kf6 {[%emt 0:11:57]} 48. Nd5+ {[%emt 0:00:58] Weighted Error Value: White=0.08 (flawless) /Black=0.07 (flawless)} 1/2-1/2

[Event "Israeli Championship 2022"]
[Site "Yosiah Arad"]
[Date "2022.12.11"]
[Round "7.9"]
[White "Yaniv, Yuval"]
[Black "Rozen, Eytan"]
[Result "1/2-1/2"]
[ECO "B12"]
[WhiteElo "2343"]
[BlackElo "2459"]
[Annotator "TA"]
[PlyCount "61"]
[EventDate "2022.12.05"]
[EventType "swiss"]
[EventCountry "ISR"]
[SourceTitle "playchess.com"]
[Source "ChessBase"]
[SourceQuality "1"]
[TimeControl "40/5400+30:1800+30"]

{[%evp 11,61,11,8,0,4,0,0,0,0,-4,0,-15,0,0,0,0,0,-39,0,0,91,108,94,104,81,8,56,48,167,152,279,242,827,845,692,69,86,60,53,66,47,48,42,57,49,48,166,0,13,0,0,0]} 1. e4 {[%emt 0:00:16]} c6 {[%emt 0:00:41]} 2. d4 {[%emt 0:00:10]} d5 {[%emt 0:00:04]} 3. e5 {[%emt 0:00:08]} Bf5 {[%emt 0:00:05]} 4. h4 {[%emt 0:00:14]} h5 {[%emt 0:00:05]} 5. c4 {[%emt 0:00:08]} e6 {[%emt 0:00:07]} 6. Nc3 {[%emt 0:00:19]} Ne7 {[%emt 0:00:07]} 7. Nge2 {[%emt 0:00:28] B12: Caro-Kann: Advance Variation.} Nd7 {[%emt 0:00:05]} 8. Ng3 {[%emt 0:00:12]} Bg6 {[%emt 0:00:04]} 9. Bg5 {[%emt 0:00:21]} Qb6 {[%emt 0:00:24]} 10. Rc1 $1 {[%emt 0:00:21] The main line 10.Rc1 scores better than 10.Qd2.} Qxb2 {[%emt 0:02:07]} 11. Bd3 $1 {[%emt 0:00:09]} dxc4 {[%emt 0:00:31]} (11... Bxd3 {looks sharper.} 12. Qxd3 dxc4 13. Qxc4 Nd5) 12. Bxg6 {[%emt 0:00:54]} Nxg6 {[%emt 0:00:03]} 13. O-O {[%emt 0:00:17]} Qa3 {[%emt 0:00:07] [#]} 14. Nge4 $146 {[%emt 0:08:52]} ({Predecessor:} 14. Nxh5 Be7 15. Nxg7+ Kf8 16. Nh5 Bxg5 17. hxg5 Rd8 18. Qg4 Nb6 19. g3 Nc8 20. Ne2 {1-0 (53) Hong,A (2444)-Balakrishnan,P (2498) Chess.com INT 2020}) 14... Nb6 {[%emt 0:04:09]} 15. f4 {[%emt 0:04:24] Qf3 is the strong threat.} Nd5 {[%emt 0:08:49]} (15... Be7 $11) 16. f5 $16 {[%emt 0:01:56]} exf5 {[%emt 0:02:08]} 17. Rxf5 {[%emt 0:00:12] And now Qf1 would win.} Bb4 {[%emt 0:00:31][%cal Rd5c3]} 18. Rf3 {[%emt 1:20:09]} (18. Nxd5 $1 $16 cxd5 19. Rf3 (19. Nd6+ Bxd6 20. exd6 f6 $17) 19... Qxa2 20. Ra1) 18... Nxc3 {[%emt 0:04:50]} (18... Qa5 $1 $11 {was preferrable.}) 19. Rcxc3 $14 {[%emt 0:00:00]} Qxa2 {[%emt 0:01:59]} (19... Bxc3 $14 20. Rxc3 Qxa2 21. Nd6+ Kf8) 20. Rce3 $18 {[%emt 0:00:00] Strongly threatening Nd6+.} O-O {[%emt 0:07:07]} (20... c3 $16) 21. Rg3 $1 {[%emt 0:00:00]} Rfd8 $2 {[%emt 0:06:47]} (21... Rfe8) 22. e6 {[%emt 0:00:00] Hoping for exf7+.} c3 {[%emt 0:03:14] [#]} 23. Qxh5 $2 {[%emt 0:00:00]} (23. Nf6+ $1 $18 {[%mdl 512]} gxf6 24. Bxf6) 23... Qxe6 $1 $14 {[%emt 0:12:21] [#] aiming for ...c2.} (23... Rxd4 $2 24. Nf6+ Kf8 25. Qh7 $1 fxe6 26. Qg8+ (26. Qxg6 Rd1+ 27. Kh2 Qb1 $18) 26... Ke7 27. Ne4+ (27. Qxa8 gxf6 28. Qxb7+ Kd6 $11) 27... Kd7 28. Qxg7+ Kc8 29. Qxd4 $18) 24. Nf6+ $1 {[%emt 0:00:00][%mdl 64] Discovered Attack} Qxf6 $1 {[%emt 0:00:05]} 25. Bxf6 {[%emt 0:00:00]} c2 {[%emt 0:00:02]} 26. Rc3 $1 {[%emt 0:00:00]} Bxc3 {[%emt 0:00:02]} (26... gxf6 27. Rxg6+ fxg6 28. Qxg6+ Kf8 29. Qxf6+ Ke8 30. Qe6+ Be7 31. Rxc2 Rxd4 32. Re2 Rd1+ 33. Kh2 $18) 27. Rxc3 {[%emt 0:00:00] The board is on fire.} gxf6 {[%emt 0:00:03]} 28. Qg4 {[%emt 0:00:00] Black must now prevent h5.} f5 {[%emt 0:00:16] [#] Against h5} (28... Rd5 $14) 29. Qxf5 $2 {[%emt 0:00:00]} (29. Qg5 $1 $18) 29... Nxh4 {[%emt 0:00:12]} 30. Rg3+ {[%emt 0:00:00]} Ng6 {[%emt 0:00:11]} 31. Rxg6+ {[%emt 0:00:00] Weighted Error Value: White=0.46/Black=0.28 (precise)} 1/2-1/2

[Event "Israeli Championship 2022"]
[Site "Yosiah Arad"]
[Date "2022.12.11"]
[Round "7.10"]
[White "Aizenberg, Benny"]
[Black "Zemach, Nadav"]
[Result "0-1"]
[ECO "C88"]
[WhiteElo "2375"]
[BlackElo "2402"]
[Annotator "TA"]
[PlyCount "144"]
[EventDate "2022.12.05"]
[EventType "swiss"]
[EventCountry "ISR"]
[SourceTitle "playchess.com"]
[Source "ChessBase"]
[SourceQuality "1"]
[TimeControl "40/5400+30:1800+30"]

{[%evp 16,144,17,22,27,33,48,26,16,0,0,0,41,53,49,41,65,28,30,33,41,23,27,0,16,0,0,0,0,-23,0,0,10,0,0,0,0,0,0,0,0,0,0,0,20,7,15,-14,-16,-289,-274,-302,-268,-345,-337,-349,-258,-277,-274,-276,-269,-305,-294,-294,-294,-291,-293,-293,-262,-293,-290,-293,-282,-288,-287,-283,-279,-302,-303,-300,-310,-329,-317,-615,-617,-602,-614,-596,-570,-606,-573,-1172,-134,-137,-137,-137,-134,-171,-79,-133,-113,-97,-50,-82,-79,-108,-54,-55,-62,-63,0,-63,-45,-2781,-1960,-29957,-29961,-29970,-29972,-29960,-12797,-29992,-29986,-29986,-29987,-29987,-29988,-29988,-29989,-29989,-29990]} 1. e4 {[%emt 0:00:03]} e5 {[%emt 0:00:04]} 2. Nf3 {[%emt 0:00:03]} Nc6 {[%emt 0:00:04]} 3. Bb5 {[%emt 0:00:03]} a6 {[%emt 0:00:03]} 4. Ba4 {[%emt 0:00:03]} Nf6 {[%emt 0:00:08]} 5. O-O {[%emt 0:00:03]} Be7 {[%emt 0:00:03]} 6. Re1 {[%emt 0:00:03]} b5 {[%emt 0:00:10]} 7. Bb3 {[%emt 0:00:03]} O-O {[%emt 0:00:07]} 8. h3 {[%emt 0:00:03]} Bb7 {[%emt 0:00:55]} 9. d3 {[%emt 0:00:03]} d5 {[%emt 0:00:27] C88: Closed Ruy Lopez: Anti-Marshall Systems.} 10. exd5 {[%emt 0:00:03]} Nxd5 {[%emt 0:00:05]} 11. Nbd2 {[%emt 0:00:04][%cal Bb1d2,Bd2e4,Be4g3,Bg3f5][%mdl 32]} Qd7 {[%emt 0:00:27] White has an edge.} 12. a4 {[%emt 0:00:09]} f6 {[%emt 0:06:43]} 13. Ne4 {[%emt 0:00:05] [#] Threatens to win with c4. 13.Ne4 was played by the boomers.} Nd4 $146 {[%emt 0:07:37]} ({Predecessor:} 13... Na5 14. Ba2 c5 15. Be3 Rfc8 16. axb5 axb5 17. Nxc5 Rxc5 18. b4 Rcc8 19. bxa5 Kh8 {½-½ (54) Grischuk,A (2777)-Ding,L (2805) Ekaterinburg 2020}) 14. Nxd4 {[%emt 0:05:21]} exd4 {[%emt 0:00:03]} 15. Ng3 {[%emt 0:06:55]} Rfe8 {[%emt 0:11:25]} 16. axb5 {[%emt 0:08:09]} axb5 {[%emt 0:01:16]} 17. Rxa8 {[%emt 0:00:10]} Rxa8 {[%emt 0:03:44]} 18. Qh5 {[%emt 0:06:08][%cal Oe1e7]} (18. Ne2 {simplifies} Bb4 19. c3 dxc3 20. bxc3 Ba5 21. Bd2) 18... Bf8 {[%emt 0:06:22]} 19. Bd2 {[%emt 0:12:47]} (19. Ne2 $5 {[%cal Re2d4]}) 19... c5 {[%emt 0:02:56]} 20. Nf5 {[%emt 0:10:25]} Kh8 {[%emt 0:16:40] [#] White must now prevent ...g6.} 21. Nh4 {[%emt 0:04:45] Inhibits g6.} Kg8 {[%emt 0:00:14]} 22. c4 {[%emt 0:07:15]} dxc3 {[%emt 0:05:06]} (22... Nb6 $5 {[%cal Rb5c4]}) 23. bxc3 {[%emt 0:03:10]} Qf7 {[%emt 0:03:45]} 24. Qd1 {[%emt 0:04:31]} (24. Qxf7+ {simplifies} Kxf7 25. Nf5 Kg6 26. Ng3) 24... Rd8 {[%emt 0:01:54]} 25. Qa1 {[%emt 0:05:40]} c4 {[%emt 0:06:01]} 26. dxc4 {[%emt 0:00:29]} Nb6 {[%emt 0:00:05][%csl LRc4,LRd2]} 27. Be3 {[%emt 0:03:41]} Nxc4 {[%emt 0:00:33]} 28. Bd4 {[%emt 0:01:30]} Bd5 {[%emt 0:03:34]} 29. Bc2 {[%emt 0:02:24]} Nd6 {[%emt 0:04:55]} 30. Qb1 {[%emt 0:02:50]} g6 {[%emt 0:00:06]} 31. Re3 {[%emt 0:00:08][%cal Rh4g6]} Nc4 {[%emt 0:02:37]} 32. Bxg6 $2 {[%emt 0:04:24][%mdl 8192]} hxg6 $19 {[%emt 0:00:36]} 33. Rg3 {[%emt 0:00:03]} g5 {[%emt 0:05:52] And now ...Re8 would win.} 34. Nf5 {[%emt 0:04:09]} Nd6 {[%emt 0:01:35]} 35. Ne3 {[%emt 0:02:12] Hoping for Nxd5.} Be4 {[%emt 0:00:18]} 36. Qc1 {[%emt 0:00:41]} Bg7 {[%emt 0:00:43]} 37. h4 {[%emt 0:01:14]} gxh4 {[%emt 0:01:34]} 38. Rg4 {[%emt 0:00:04]} Bg6 {[%emt 0:01:04][%cal Oh4h3]} 39. Rxh4 {[%emt 0:00:58]} Nf5 {[%emt 0:00:06]} 40. Nxf5 {[%emt 0:00:37]} Bxf5 {[%emt 0:00:05]} 41. Qf4 {[%emt 0:30:07]} Be6 {[%emt 0:32:40]} 42. Qe4 {[%emt 0:01:07]} Rd5 {[%emt 0:06:14]} 43. Qh7+ {[%emt 0:03:24]} Kf8 {[%emt 0:00:01]} 44. Qe4 {[%emt 0:00:15]} Bf5 {[%emt 0:00:00]} 45. Qe2 {[%emt 0:00:00]} Qe6 {[%emt 0:00:00] Against c4} 46. Qa2 {[%emt 0:00:00]} Kf7 {[%emt 0:00:00]} 47. Qa7+ {[%emt 0:00:00]} Rd7 {[%emt 0:00:00]} 48. Qb8 {[%emt 0:00:00]} Qe2 {[%emt 0:00:00]} 49. Rf4 $2 {[%emt 0:00:00]} (49. Kh2) 49... Qd1+ {[%emt 0:00:00]} 50. Kh2 {[%emt 0:00:00]} Qh5+ {[%emt 0:00:00]} 51. Kg1 {[%emt 0:00:00]} Re7 {[%emt 0:00:00][%cal Re7e1]} 52. f3 {[%emt 0:00:00]} Bh6 {[%emt 0:00:00] Strongly threatening ...Qg5.} 53. Qh8 {[%emt 0:00:00]} Qg5 {[%emt 0:00:00]} (53... Re1+ $19 54. Kf2 Re6) 54. Rxf5 $17 {[%emt 0:00:00]} Qxf5 {[%emt 0:00:00] The board is on fire.} 55. Qxh6 {[%emt 0:00:00][%mdl 4096] Endgame KQR-KQB} Re2 {[%emt 0:00:00] Against Qd2} 56. Qh4 {[%emt 0:00:00]} Re8 {[%emt 0:00:00]} ({Stronger than} 56... Qg6 57. Qh3 $17) (56... Qg5 $19 {[%csl Ge2][%cal Rg5g2] is more deadly.} 57. Qh3 Kg6) 57. Bf2 {[%emt 0:00:00]} (57. Kf2 $142) 57... Rg8 {[%emt 0:00:00]} 58. Qd4 {[%emt 0:00:00]} Rh8 {[%emt 0:01:09]} (58... Qxf3 $2 59. Qd7+ Kg6 60. gxf3 $18) (58... Qb1+ $17 59. Kh2 Rh8+ 60. Bh4 Qf5) 59. Qa7+ {[%emt 0:00:00]} Kg6 {[%emt 0:00:05]} 60. Qa2 {[%emt 0:00:00] Prevents Qb1+.} Rd8 {[%emt 0:02:35]} (60... Qd3 $17 {( -> ...Qd1+)} 61. Qe6 Qb1+ 62. Be1 Qf5) 61. Bd4 $15 {[%emt 0:00:00]} Re8 {[%emt 0:01:19]} 62. Kf2 {[%emt 0:00:00]} Qd3 {[%emt 0:00:30]} ({Better is} 62... Qe6 $15 63. Qb1+ Kg7) 63. Kg3 {[%emt 0:00:00]} (63. g4 $1 $11) 63... b4 {[%emt 0:02:30]} 64. Qb3 $2 {[%emt 0:02:02][%mdl 8192]} (64. Qa4 $15 Rg8 65. Qxb4) 64... Qd2 $19 {[%emt 0:02:13]} 65. Qb1+ {[%emt 0:00:45]} f5 {[%emt 0:02:00]} 66. Qa1 {[%emt 0:06:35]} Re2 {[%emt 0:02:12]} 67. Qa6+ {[%emt 0:00:31]} Kh5 {[%emt 0:00:00]} 68. Kh3 {[%emt 0:01:15]} Rxg2 {[%emt 0:00:00] Black mates.} ({Much less strong is} 68... bxc3 69. g4+ fxg4+ 70. fxg4+ Kg5 71. Qf6#) 69. Be3 {[%emt 0:01:52]} Rh2+ {[%emt 0:00:00]} 70. Kg3 {[%emt 0:00:01]} Qg2+ {[%emt 0:00:00]} 71. Kf4 {[%emt 0:00:04]} Qg5+ {[%emt 0:00:00]} 72. Ke5 {[%emt 0:00:06]} Qxe3+ {[%emt 0:03:00] Weighted Error Value: White=0.40/Black=0.19 (very precise)} 0-1

[Event "Israeli Championship 2022"]
[Site "Yosiah Arad"]
[Date "2022.12.11"]
[Round "7.11"]
[White "Iliaguev, Nisim"]
[Black "Shohat, Yotam"]
[Result "1-0"]
[ECO "A00"]
[WhiteElo "2364"]
[BlackElo "2294"]
[Annotator "TA"]
[PlyCount "69"]
[EventDate "2022.12.05"]
[EventType "swiss"]
[EventCountry "ISR"]
[SourceTitle "playchess.com"]
[Source "ChessBase"]
[SourceQuality "1"]
[TimeControl "40/5400+30:1800+30"]

{[%evp 9,69,0,3,0,4,0,31,26,27,10,12,8,36,28,36,26,29,26,35,18,32,26,43,41,72,83,100,100,105,102,106,52,66,66,473,465,440,375,429,373,375,373,373,359,406,402,404,399,498,511,502,483,454,425,577,573,564,520,872,849,12838,705]} 1. g3 {[%emt 0:00:05]} e5 {[%emt 0:01:16]} 2. Bg2 {[%emt 0:00:19]} d5 {[%emt 0:00:42]} 3. d4 {[%emt 0:00:59]} e4 {[%emt 0:01:41]} 4. c4 {[%emt 0:00:27]} c6 {[%emt 0:00:05]} 5. Nc3 {[%emt 0:00:11]} Bb4 {[%emt 0:03:07]} 6. cxd5 {[%emt 0:00:47] A00: Irregular Openings.} cxd5 {[%emt 0:02:18]} 7. Nh3 {[%emt 0:00:19] 7.f3 is the modern continuation.} Ne7 {[%emt 0:06:06]} 8. O-O {[%emt 0:01:30] White is slightly better.} O-O {[%emt 0:00:27] [#]} 9. Nf4 $146 {[%emt 0:05:01]} ({Predecessor:} 9. f3 exf3 10. exf3 Nbc6 11. Be3 Qa5 12. Ne2 Nf5 13. Bf2 Bd2 14. Nef4 Ne3 15. Bxe3 Bxe3+ {½-½ (23) Tremblay,A (2144)-Levkovsky,A (2222) Montreal 2015}) 9... Nbc6 {[%emt 0:01:37]} 10. f3 {[%emt 0:06:37]} exf3 {[%emt 0:00:33]} 11. Bxf3 {[%emt 0:00:02][%cal Rf4d5]} Be6 {[%emt 0:00:15]} 12. e3 {[%emt 0:04:30]} Qd7 {[%emt 0:01:46]} 13. Bd2 {[%emt 0:00:59]} Rac8 {[%emt 0:04:04]} 14. Qe2 {[%emt 0:05:29]} Rfe8 {[%emt 0:02:03]} 15. Rae1 {[%emt 0:05:36]} Bxc3 {[%emt 0:04:20]} 16. Bxc3 {[%emt 0:00:38]} Rcd8 {[%emt 0:10:25] [#]} 17. Nxe6 $1 {[%emt 0:09:57] White has more active pieces.} Qxe6 {[%emt 0:01:28]} 18. e4 {[%emt 0:01:43] Against Nf5} dxe4 {[%emt 0:25:31]} 19. Bxe4 {[%emt 0:00:11][%cal Od4d5] Black must now prevent d5!} ({Don't take} 19. Qxe4 Qxe4 20. Bxe4 (20. Rxe4 f5 $14) 20... Rf8 $14) 19... f5 {[%emt 0:00:41] Inhibits d5.} 20. Bd3 {[%emt 0:07:45] A strong pair of Bishops.} (20. Bc2 $16 Qxe2 21. Rxe2) 20... Qxe2 {[%emt 0:00:31]} 21. Rxe2 {[%emt 0:00:09] [#] Hoping for d5.} Nxd4 {[%emt 0:06:17][%mdl 8192] Loses the game.} (21... Rf8 $14) 22. Bxd4 $18 {[%emt 0:01:46]} Rxd4 {[%emt 0:00:03]} 23. Bb5 {[%emt 0:00:15]} Kf7 {[%emt 0:02:40]} 24. Bxe8+ {[%emt 0:00:32]} Kxe8 {[%emt 0:00:04]} 25. Rxf5 {[%emt 0:00:34][%mdl 4096] Endgame KRR-KRN} Rd7 {[%emt 0:00:32]} 26. Kg2 {[%emt 0:02:22]} g6 {[%emt 0:01:18]} 27. Rf1 {[%emt 0:00:31]} Rd6 {[%emt 0:01:08]} 28. h4 {[%emt 0:00:32]} ({Not} 28. Rfe1 Rd7 29. Rf2 Kd8 30. Rf8+ Kc7 $18) 28... h5 {[%emt 0:00:43]} 29. Rf4 {[%emt 0:01:13] White is clearly winning.} ({Weaker is} 29. Rfe1 Rd7 30. Rf1 Rc7 $18) 29... Rc6 {[%emt 0:00:43]} 30. b4 {[%emt 0:01:08]} a6 {[%emt 0:00:13]} 31. a4 {[%emt 0:00:35][%cal Ba2a4,Ba4b5][%mdl 32]} Rd6 {[%emt 0:00:16]} 32. b5 {[%emt 0:01:24]} axb5 {[%emt 0:00:06]} 33. axb5 {[%emt 0:00:02]} Rd5 {[%emt 0:03:43]} (33... Kd7 $142 34. Rf7 Re6) 34. Rf6 {[%emt 0:04:30]} g5 {[%emt 0:01:50]} 35. Rh6 {[%emt 0:00:25] Weighted Error Value: White=0.11 (very precise) /Black=0.47} (35. Rfe6 $142 Rd7 36. hxg5) 1-0